fUST/lending_fUST_20240828
["ID","MTS","AMOUNT","RATE_DAILY","PERIOD"]
[336375225,1724795465273,-500.0,0.00013424,2]
[336375226,1724795465283,-591.65623637,0.00013424,2]
[336375227,1724795465293,-151.0,0.00013424,2]
[336375228,1724795465303,-500.0,0.00013424,2]
[336375229,1724795465318,-500.0,0.00013424,2]
[336375230,1724795465328,-628.61,0.00013424,2]
[336375231,1724795465338,-152.839193,0.00013424,2]
[336375232,1724795465348,-152.839193,0.00013424,2]
[336375233,1724795465357,-500.0,0.00013424,2]
[336375234,1724795465367,-500.0,0.00013424,2]
[336375235,1724795465377,-862.36,0.00013424,2]
[336375236,1724795465387,-500.0,0.00013424,2]
[336375237,1724795465397,-556.886825,0.00013424,2]
[336375238,1724795465408,-1680.46,0.00013424,2]
[336375239,1724795465418,-556.886825,0.00013424,2]
[336375240,1724795465428,-740.002621,0.00013424,2]
[336375241,1724795465438,-151.0,0.00013424,2]
[336375242,1724795465449,-904.68737,0.00013424,2]
[336375243,1724795465459,-740.002621,0.00013424,2]
[336375244,1724795465469,-904.68737,0.00013424,2]
[336375245,1724795465479,-156.703659,0.00013424,2]
[336375246,1724795465489,-156.703659,0.00013424,2]
[336375247,1724795465500,-744.37,0.00013424,2]
[336375248,1724795465510,-500.0,0.00013424,2]
[336375249,1724795465521,-151.0,0.00013424,2]
[336375250,1724795465531,-1063.5,0.00013424,2]
[336375251,1724795465542,-187.98919,0.00013424,2]
[336375252,1724795465552,-500.0,0.00013424,2]
[336375253,1724795465563,-187.98919,0.00013424,2]
[336375254,1724795465575,-6262.38,0.00013424,2]
[336375255,1724795465585,-2100.62,0.00013424,2]
[336375256,1724795465596,-4813.49,0.00013424,2]
[336375257,1724795465606,-500.0,0.00013424,2]
[336375258,1724795465616,-500.0,0.00013424,2]
[336375259,1724795465627,-560.7,0.00013424,2]
[336375260,1724795465637,-500.0,0.00013424,2]
[336375261,1724795465649,-8347.92,0.00013424,2]
[336375262,1724795465659,-5043.488143,0.00013424,2]
[336375263,1724795465669,-1571.4,0.00013424,2]
[336375264,1724795465679,-5043.488143,0.00013424,2]
[336375265,1724795465689,-5447.96,0.00013424,2]
[336375266,1724795465700,-500.0,0.00013424,2]
[336375267,1724795465710,-504.518069,0.00013424,2]
[336375268,1724795465720,-504.518069,0.00013424,2]
[336375269,1724795465731,-3264.69,0.00013424,2]
[336375270,1724795465742,-911.979042,0.00013424,2]
[336375271,1724795465753,-431.459823,0.00013424,2]
[336375272,1724795465763,-911.979042,0.00013424,2]
[336375273,1724795465774,-431.459823,0.00013424,2]
[336375274,1724795465794,-500.0,0.00013424,2]
[336375275,1724795465813,-500.0,0.00013424,2]
[336375276,1724795465831,-6911.1,0.00013424,2]
[336375277,1724795465847,-442.445292,0.00013424,2]
[336375278,1724795465864,-1339.06,0.00013424,2]
[336375279,1724795465881,-442.445292,0.00013424,2]
[336375280,1724795465900,-170.978144,0.00013424,2]
[336375281,1724795465915,-170.978144,0.00013424,2]
[336375282,1724795465932,-500.0,0.00013424,2]
[336375283,1724795465950,-764.13,0.00013424,2]
[336375284,1724795465967,-1520.65,0.00013424,2]
[336375285,1724795465980,-10890.10308685,0.00013424,2]
[336375286,1724795466282,-1979.21999969,0.00013424,2]
[336375287,1724795466412,-500.0,0.00010958,2]
[336375288,1724795466422,-500.0,0.00010958,2]
[336375289,1724795466432,-500.0,0.00010958,2]
[336375290,1724795466445,-500.0,0.00010958,2]
[336375291,1724795466455,-500.0,0.00011232,2]
[336375292,1724795466464,-207.7907237,0.000113,2]
[336375293,1724795466475,-1241.377424,0.000119,2]
[336375294,1724795466485,-1241.377424,0.00012328,2]
[336375295,1724795466494,-1241.377424,0.00012602,2]
[336375296,1724795466504,-1241.377424,0.00012876,2]
[336375297,1724795466515,-11824.52691346,0.00013424,2]
[336375298,1724795466525,-3175.65,0.00013424,2]
[336375299,1724795466535,-919.895835,0.00013424,2]
[336375300,1724795466545,-500.0,0.00013424,2]
[336375301,1724795466555,-365.952724,0.00013424,2]
[336375302,1724795466566,-919.895835,0.00013424,2]
[336375303,1724795466578,-5004.7,0.00013424,2]
[336375304,1724795466588,-365.952724,0.00013424,2]
[336375305,1724795466598,-724.61,0.00013424,2]
[336375306,1724795466607,-500.0,0.00013424,2]
[336375307,1724795466617,-6023.9,0.00013424,2]
[336375308,1724795466627,-854.320986,0.00013424,2]
[336375309,1724795466637,-158.73,0.00013424,2]
[336375310,1724795466647,-854.320986,0.00013424,2]
[336375311,1724795466656,-500.0,0.00013424,2]
[336375312,1724795466666,-500.0,0.00013424,2]
[336375313,1724795466678,-549.12365509,0.00013424,2]
[336375314,1724795466688,-500.0,0.00013424,2]
[336375315,1724795466698,-1683.05327797,0.00013424,2]
[336375316,1724795466711,-608.44590205,0.00013424,2]
[336375317,1724795466723,-6726.40081998,0.00013424,2]
[336375318,1724795466733,-151.0,0.00013424,2]
[336375319,1724795466744,-151.0,0.00013424,2]
[336375320,1724795466754,-419.515456,0.00013424,2]
[336375321,1724795466765,-151.0,0.00013424,2]
[336375322,1724795466775,-419.515456,0.00013424,2]
[336375323,1724795466785,-500.0,0.00013424,2]
[336375324,1724795466795,-2078.29,0.00013424,2]
[336375325,1724795467105,-1735.61549056,0.00013424,2]
[336375326,1724795467125,-2596.29450944,0.00013424,2]
[336375327,1724795467135,-266.094717,0.00013424,2]
[336375328,1724795467145,-518.72,0.00013424,2]
[336375329,1724795467155,-266.094717,0.00013424,2]
[336375330,1724795467165,-15075.87,0.00013424,2]
[336375331,1724795467174,-151.0,0.00013424,2]
[336375332,1724795467184,-151.0,0.00013424,2]
[336375333,1724795467194,-828.903892,0.00013424,2]
[336375334,1724795467204,-1290.69,0.00013424,2]
[336375335,1724795467213,-828.903892,0.00013424,2]
[336375336,1724795467223,-438.725675,0.00013424,2]
[336375337,1724795467233,-637.242243,0.00013424,2]
[336375338,1724795467243,-438.725675,0.00013424,2]
[336375339,1724795467252,-637.242243,0.00013424,2]
[336375340,1724795467262,-500.0,0.00013424,2]
[336375341,1724795467271,-248.385628,0.00013424,2]
[336375342,1724795467282,-248.385628,0.00013424,2]
[336375343,1724795467291,-1299.46,0.00013424,2]
[336375344,1724795467300,-1039.58275511,0.00013424,2]
[336375345,1724795467313,-4205.03724489,0.00013424,2]
[336375346,1724795467324,-315.63275511,0.00013424,2]
[336375347,1724795467532,-500.0,0.00010958,2]
[336375348,1724795467542,-500.0,0.00010958,2]
[336375349,1724795467551,-500.0,0.00010958,2]
[336375350,1724795467561,-500.0,0.00011232,2]
[336375351,1724795467571,-500.0,0.00011232,2]
[336375352,1724795467582,-313.77635932,0.00011506,2]
[336375353,1724795467594,-186.22364068,0.00011506,2]
[336375354,1724795467603,-1241.377424,0.000119,2]
[336375355,1724795467614,-1241.377424,0.00012328,2]
[336375356,1724795467623,-973.26151132,0.00012602,2]
[336375357,1724795467635,-250.0,0.00012602,2]
[336375358,1724795467697,-18.11591268,0.00012602,2]
[336375359,1724795467708,-1241.377424,0.00012876,2]
[336375360,1724795467718,-229.43331089,0.00013424,2]
[336375361,1724795467728,-545.066066,0.00013424,2]
[336375362,1724795467738,-500.0,0.00013424,2]
[336375363,1724795467748,-500.0,0.00013424,2]
[336375364,1724795467758,-1241.377424,0.00013424,2]
[336375365,1724795467767,-165.81070612,0.00013477,2]
[336375366,1724795467778,-558.81915631,0.00013483,2]
[336375367,1724795467791,-541.18084369,0.00013483,2]
[336375368,1724795467802,-600.0,0.00013483,2]
[336375369,1724795467812,-154.69833824,0.00013496,2]
[336375370,1724795467825,-220.188812,0.00013497,2]
[336375371,1724795467835,-151.0,0.00013497,2]
[336375372,1724795467845,-151.0,0.00013497,2]
[336375373,1724795467856,-1104.016722,0.00013497,2]
[336375374,1724795467866,-1104.016722,0.00013497,2]
[336375375,1724795467875,-14723.367976,0.000135,2]
[336375376,1724795467885,-151.0,0.000135,2]
[336375377,1724795467894,-168.572264,0.000135,2]
[336375378,1724795467904,-168.572264,0.000135,2]
[336375379,1724795467914,-151.0,0.000135,2]
[336375380,1724795467923,-151.0,0.000135,2]
[336375381,1724795467935,-151.0,0.000135,2]
[336375382,1724795467945,-312.85894434,0.000135,2]
[336375383,1724795467954,-151.0,0.000135,2]
[336375384,1724795467964,-201.247383,0.000135,2]
[336375385,1724795467974,-200.764818,0.000135,2]
[336375386,1724795467983,-200.764818,0.000135,2]
[336375387,1724795467992,-151.0,0.000135,2]
[336375388,1724795468002,-151.0,0.000135,2]
[336375389,1724795468011,-704.778993,0.000135,2]
[336375390,1724795468022,-704.778993,0.000135,2]
[336375391,1724795468033,-600.0,0.00013515,2]
[336375392,1724795468042,-165.482283,0.00013546,2]
[336375393,1724795468052,-169.054926,0.00013546,2]
[336375394,1724795468062,-164.42202,0.00013546,2]
[336375395,1724795468072,-152.34378,0.00013546,2]
[336375396,1724795468086,-204.268907,0.00013546,2]
[336375397,1724795468095,-436.073435,0.00013546,2]
[336375398,1724795468104,-357.688716,0.00013546,2]
[336375399,1724795468114,-1307.941649,0.00013546,2]
[336375400,1724795468123,-944.436902,0.00013546,2]
[336375401,1724795468132,-882.974597,0.00013546,2]
[336375402,1724795468142,-877.694877,0.00013546,2]
[336375403,1724795468151,-697.606033,0.00013546,2]
[336375404,1724795468161,-553.946704,0.00013546,2]
[336375405,1724795468170,-600.0,0.00013553,2]
[336375406,1724795468180,-600.0,0.00013553,2]
[336375407,1724795468191,-600.0,0.00013553,2]
[336375408,1724795468201,-600.0,0.00013553,2]
[336375409,1724795468211,-600.0,0.00013553,2]
[336375410,1724795468221,-600.0,0.00013553,2]
[336375411,1724795468231,-600.0,0.00013553,2]
[336375412,1724795468241,-415.3009279,0.00013661,2]
[336375413,1724795468251,-153.0,0.00013679,2]
[336375414,1724795468261,-153.0,0.00013679,2]
[336375415,1724795468270,-153.0,0.00013679,2]
[336375416,1724795468280,-155.0,0.0001368,2]
[336375417,1724795468289,-609.97935647,0.00013698,2]
[336375418,1724795468299,-500.0,0.00013698,2]
[336375419,1724795468308,-172.5049413,0.00013698,2]
[336375420,1724795468317,-500.0,0.00013698,2]
[336375421,1724795468330,-535.33283935,0.00013698,2]
[336375422,1724795468342,-500.0,0.00013698,2]
[336375423,1724795468351,-535.33283935,0.00013698,2]
[336375424,1724795468361,-211.68861078,0.00013698,2]
[336375425,1724795468370,-269.72330333,0.00013698,2]
[336375426,1724795468379,-172.5049413,0.00013698,2]
[336375427,1724795468388,-172.5049413,0.00013698,2]
[336375428,1724795468398,-322.33417659,0.00013698,2]
[336375429,1724795468408,-500.0,0.00013698,2]
[336375430,1724795468418,-500.0,0.00013698,2]
[336375431,1724795468427,-500.0,0.00013698,2]
[336375432,1724795468436,-500.0,0.00013698,2]
[336375433,1724795468446,-500.0,0.00013698,2]
[336375434,1724795468455,-200.0,0.00013698,2]
[336375435,1724795468465,-551.11580522,0.00013698,2]
[336375436,1724795468475,-154.45007154,0.00013698,2]
[336375437,1724795468484,-500.0,0.00013698,2]
[336375438,1724795468493,-500.0,0.00013698,2]
[336375439,1724795468502,-4313.53310714,0.00013698,2]
[336375440,1724795468512,-81.21176653,0.00013698,2]
[336375441,1724795468525,-418.78823347,0.00013698,2]
[336375442,1724795468535,-500.0,0.00013698,2]
[336375443,1724795468545,-500.0,0.00013698,2]
[336375444,1724795468555,-300.0,0.00013698,2]
[336375445,1724795468565,-499.99999999,0.00013698,2]
[336375446,1724795468576,-500.0,0.00013698,2]
[336375447,1724795468585,-500.0,0.00013698,2]
[336375448,1724795468595,-500.0,0.00013698,2]
[336375449,1724795468605,-500.0,0.00013698,2]
[336375450,1724795468615,-500.0,0.00013698,2]
[336375451,1724795468624,-200.0,0.00013698,2]
[336375452,1724795468634,-555.77984104,0.00013698,2]
[336375453,1724795468645,-151.0,0.00013698,2]
[336375454,1724795468656,-437.701327,0.00013698,2]
[336375455,1724795468665,-249.0858055,0.00013698,2]
[336375461,1724795681517,243.78652655,0.000287,120]
[336375462,1724795681540,1996.0,0.000287,120]
[336375463,1724795681562,60.21347345,0.000287,120]
[336375470,1724795920346,261.42638271,0.00011506,10]
[336375471,1724795928177,1938.90656526,0.00011506,10]
[336375473,1724796018264,-656.21,0.000155,31]
[336375474,1724796018293,-656.21,0.000155,31]
[336375475,1724796018322,-656.21,0.000155,31]
[336375476,1724796018354,-656.21,0.000155,31]
[336375477,1724796018382,-656.21,0.000155,31]
[336375478,1724796018410,-656.21,0.000155,31]
[336375479,1724796018437,-656.21,0.000155,31]
[336375480,1724796018464,-656.21,0.000155,31]
[336375481,1724796018493,-656.21,0.000155,31]
[336375482,1724796018519,-656.21,0.000155,31]
[336375483,1724796018546,-656.21,0.000155,31]
[336375484,1724796018573,-656.21,0.000155,31]
[336375485,1724796018600,-656.21,0.000155,31]
[336375486,1724796018626,-656.21,0.000155,31]
[336375487,1724796018653,-656.21,0.000155,31]
[336375488,1724796018680,-656.21,0.000155,31]
[336375489,1724796018731,-656.21,0.000183,31]
[336375490,1724796018767,-656.21,0.000183,31]
[336375491,1724796018795,-656.21,0.000183,31]
[336375492,1724796018825,-656.21,0.000183,31]
[336375493,1724796018850,-656.21,0.000183,31]
[336375494,1724796018878,-656.21,0.000183,31]
[336375495,1724796018905,-656.21,0.000183,31]
[336375496,1724796018933,-656.21,0.000183,31]
[336375497,1724796018958,-656.21,0.000183,31]
[336375498,1724796018987,-656.21,0.000183,31]
[336375499,1724796019021,-656.21,0.000183,31]
[336375500,1724796019047,-656.21,0.000183,31]
[336375501,1724796019074,-656.21,0.000183,31]
[336375502,1724796019101,-656.21,0.000183,31]
[336375503,1724796019128,-656.21,0.000183,31]
[336375504,1724796019156,-656.21,0.000183,31]
[336375505,1724796019184,-656.21,0.000183,31]
[336375506,1724796019211,-656.21,0.000183,31]
[336375507,1724796019241,-656.21,0.000183,31]
[336375508,1724796019455,-656.21,0.000183,31]
[336375509,1724796019486,-656.21,0.000183,31]
[336375510,1724796019517,-656.21,0.000183,31]
[336375511,1724796019545,-656.21,0.000183,31]
[336375512,1724796019573,-656.21,0.000183,31]
[336375513,1724796019617,-656.21,0.000211,31]
[336375514,1724796019645,-656.21,0.000211,31]
[336375515,1724796019672,-656.21,0.000211,31]
[336375516,1724796019698,-656.21,0.000211,31]
[336375517,1724796019725,-656.21,0.000211,31]
[336375518,1724796019754,-656.21,0.000211,31]
[336375519,1724796019781,-656.21,0.000211,31]
[336375520,1724796019809,-656.21,0.000211,31]
[336375521,1724796019840,-656.21,0.000211,31]
[336375522,1724796019870,-656.21,0.000211,31]
[336375523,1724796019898,-656.21,0.000211,31]
[336375524,1724796019926,-656.21,0.000211,31]
[336375525,1724796019953,-656.21,0.000211,31]
[336375526,1724796019982,-656.21,0.000211,31]
[336375527,1724796020014,-656.21,0.000211,31]
[336375528,1724796020047,-656.21,0.000211,31]
[336375529,1724796020075,-656.21,0.000211,31]
[336375530,1724796020104,-656.21,0.000211,31]
[336375531,1724796020133,-656.21,0.000211,31]
[336375532,1724796020162,-656.21,0.000211,31]
[336375533,1724796020191,-656.21,0.000211,31]
[336375534,1724796020219,-656.21,0.000211,31]
[336375535,1724796020253,-656.21,0.000211,31]
[336375536,1724796020277,-791.36575084,0.000212,30]
[336375537,1724796020307,-173.9572603,0.00021918,30]
[336375538,1724796020346,-656.21,0.000238,31]
[336375539,1724796020374,-656.21,0.000238,31]
[336375540,1724796020400,-656.21,0.000238,31]
[336375541,1724796020426,-656.21,0.000238,31]
[336375542,1724796020453,-656.21,0.000238,31]
[336375543,1724796020479,-656.21,0.000238,31]
[336375544,1724796020507,-656.21,0.000238,31]
[336375545,1724796020532,-656.21,0.000238,31]
[336375546,1724796020559,-656.21,0.000238,31]
[336375547,1724796020584,-656.21,0.000238,31]
[336375548,1724796020610,-656.21,0.000238,31]
[336375549,1724796020636,-656.21,0.000238,31]
[336375550,1724796020662,-656.21,0.000238,31]
[336375551,1724796020690,-656.21,0.000238,31]
[336375552,1724796020716,-656.21,0.000238,31]
[336375553,1724796020745,-656.21,0.000238,31]
[336375554,1724796020771,-656.21,0.000238,31]
[336375555,1724796020798,-656.21,0.000238,31]
[336375556,1724796020830,-656.21,0.000238,31]
[336375557,1724796020858,-656.21,0.000238,31]
[336375558,1724796020886,-656.21,0.000238,31]
[336375559,1724796020914,-656.21,0.000238,31]
[336375560,1724796020941,-656.21,0.000238,31]
[336375561,1724796020967,-656.21,0.000238,31]
[336375562,1724796020997,-226.8880137,0.00025,30]
[336375563,1724796021026,-1000.5,0.00026,31]
[336375564,1724796021051,-500.5,0.00026,31]
[336375565,1724796021076,-489.2,0.00026,31]
[336375566,1724796021104,-1996.187,0.00026595,30]
[336375567,1724796021132,-656.21,0.000266,31]
[336375568,1724796021161,-656.21,0.000266,31]
[336375569,1724796021190,-656.21,0.000266,31]
[336375570,1724796021218,-656.21,0.000266,31]
[336375571,1724796021250,-656.21,0.000266,31]
[336375572,1724796021282,-656.21,0.000266,31]
[336375573,1724796021310,-656.21,0.000266,31]
[336375574,1724796021338,-656.21,0.000266,31]
[336375575,1724796021368,-656.21,0.000266,31]
[336375576,1724796021397,-656.21,0.000266,31]
[336375577,1724796021425,-656.21,0.000266,31]
[336375578,1724796021453,-656.21,0.000266,31]
[336375579,1724796021478,-256.80834657,0.0002661,30]
[336375580,1724796021512,-400.0,0.00027397,60]
[336375581,1724796021539,-388.895881,0.00028493,33]
[336375582,1724796021563,-388.895881,0.00028493,39]
[336375583,1724796021587,-388.895881,0.00028493,45]
[336375584,1724796021611,-388.895881,0.00028493,51]
[336375585,1724796021635,-388.895881,0.00028493,57]
[336375586,1724796021660,-388.895881,0.00028493,64]
[336375587,1724796021686,-388.895881,0.00028493,70]
[336375588,1724796021711,-388.895881,0.00028493,76]
[336375589,1724796021737,-388.895881,0.00028493,82]
[336375590,1724796021774,-388.895881,0.00028493,88]
[336375591,1724796021800,-388.895881,0.00028493,95]
[336375592,1724796021824,-388.895881,0.00028493,101]
[336375593,1724796021852,-388.895881,0.00028493,107]
[336375594,1724796021876,-388.895881,0.00028493,113]
[336375595,1724796021902,-27494.94118544,0.00028545,60]
[336375596,1724796021926,-253.1037,0.00028595,30]
[336375597,1724796021951,-1996.70742442,0.00028767,120]
[336375598,1724796021974,-753.53874272,0.0002988,30]
[336375599,1724796022011,-171.36666667,0.0003,120]
[336375600,1724796022035,-151.0,0.0003,120]
[336375601,1724796022059,-204.47341404,0.0003,30]
[336375602,1724796022083,-450.0,0.0003,120]
[336375603,1724796022108,-200.0,0.0003,120]
[336375604,1724796022133,-635.7,0.0003,120]
[336375605,1724796022159,-400.0,0.00030137,60]
[336375606,1724796022193,-171.36666667,0.00030986,120]
[336375607,1724796022217,-151.0,0.00031452,120]
[336375608,1724796022246,-171.36666667,0.00031973,120]
[336375609,1724796022413,-150.0,0.00032,30]
[336375610,1724796022439,-600.0,0.00032,120]
[336375611,1724796022474,-1000.0,0.00032876,30]
[336375612,1724796022502,-1037.86602921,0.00032876,30]
[336375613,1724796022527,-400.0,0.00032877,60]
[336375614,1724796022552,-665.0,0.000329,30]
[336375615,1724796022578,-151.0,0.00032904,120]
[336375616,1724796022602,-171.36666667,0.00032959,120]
[336375617,1724796022626,-150.0,0.00033,30]
[336375618,1724796022650,-377.5007082,0.00033,120]
[336375619,1724796022676,-171.36666667,0.00033945,120]
[336375620,1724796022701,-200.0,0.00034,30]
[336375621,1724796022726,-173563.9183785,0.00034,120]
[336375622,1724796022755,-1000.0,0.00034,120]
[336375623,1724796022781,-485.814001,0.00034,30]
[336375624,1724796022805,-151.0,0.00034356,120]
[336375625,1724796022832,-171.36666667,0.00034932,120]
[336375626,1724796022861,-5686.1503451,0.00034977,30]
[336375627,1724796022886,-165.48403319,0.00035,120]
[336375628,1724796022911,-202.79133652,0.00035,30]
[336375629,1724796022935,-553.21292809,0.00035,120]
[336375630,1724796022960,-1752.72066057,0.00035068,30]
[336375631,1724796022990,-5686.1503451,0.00035244,30]
[336375632,1724796023018,-5686.1503451,0.00035476,30]
[336375633,1724796023043,-400.0,0.00035616,60]
[336375634,1724796023067,-2648.3869,0.00035616,120]
[336375635,1724796023092,-151.0,0.00035808,120]
[336375636,1724796023117,-5686.1503451,0.00035866,30]
[336375637,1724796023142,-171.36666667,0.00035918,120]
[336375638,1724796023167,-1000.0,0.00036,120]
[336375639,1724796023191,-250.0,0.00036,30]
[336375640,1724796023216,-1643.78919851,0.0003609,120]
[336375641,1724796023240,-5686.1503451,0.00036131,30]
[336375642,1724796023269,-5686.1503451,0.00036328,30]
[336375643,1724796023294,-5686.1503451,0.00036578,30]
[336375644,1724796023318,-5686.1503451,0.0003673,30]
[336375645,1724796023341,-2522.41411622,0.000368,30]
[336375646,1724796023365,-1139.18354762,0.000368,30]
[336375647,1724796023390,-552014.94556285,0.00036821,60]
[336375648,1724796028819,-175.003146,0.00028493,33]
[336375649,1724796028848,-175.003146,0.00028493,39]
[336375650,1724796028875,-175.003146,0.00028493,45]
[336375651,1724796028901,-175.003146,0.00028493,51]
[336375652,1724796028928,-175.003146,0.00028493,57]
[336375653,1724796028953,-175.003146,0.00028493,64]
[336375654,1724796029011,-12732.37898065,0.00036821,60]
[336375655,1724796029036,-171.36666667,0.00036904,120]
[336375656,1724796029060,-1127.32350922,0.0003707,31]
[336375657,1724796029086,-5686.1503451,0.00037191,30]
[336375658,1724796029111,-151.0,0.0003726,120]
[336375659,1724796029136,-5686.1503451,0.00037357,30]
[336375660,1724796029160,-5686.1503451,0.00037578,30]
[336375661,1724796029184,-171.36666667,0.0003789,120]
[336375662,1724796029381,-5686.1503451,0.00037941,30]
[336375663,1724796029408,-1000.0,0.00038,120]
[336375664,1724796029432,-527.15504466,0.00038,30]
[336375665,1724796029459,-250.0,0.00038,30]
[336375666,1724796029485,-5686.1503451,0.00038087,30]
[336375667,1724796029514,-200.0,0.00038261,120]
[336375668,1724796029539,-500.0,0.00038356,120]
[336375669,1724796029564,-473.83729847,0.00038356,60]
[336375684,1724796434515,-279.63703442,8.769e-05,2]
[336375685,1724796449299,-136.9502261,8.769e-05,2]
[336375686,1724796449320,-521.54236624,8.793e-05,2]
[336375687,1724796449345,-300.0,8.793e-05,2]
[336375688,1724796449367,-300.0,8.793e-05,2]
[336375689,1724796449388,-5.05089779,8.794e-05,2]
[336375694,1724796549187,-161.08082681,8.769e-05,2]
[336375695,1724796549214,-300.0,8.793e-05,2]
[336375696,1724796549241,-300.0,8.793e-05,2]
[336375697,1724796549265,-1220.13525857,8.794e-05,2]
[336375698,1724796549292,-1309.99928252,8.794e-05,2]
[336375699,1724796549317,-15396.55238327,8.794e-05,2]
[336375700,1724796549342,-218.74217155,8.794e-05,2]
[336375701,1724796549369,-4724.57046973,8.794e-05,2]
[336375702,1724796549392,-4817.07031831,8.794e-05,2]
[336375703,1724796549425,-9566.0276984,8.794e-05,2]
[336375704,1724796549447,-24900.0,8.965e-05,2]
[336375705,1724796549468,-12541.1452976,9.222e-05,2]
[336375706,1724796549491,-250.0,9.255e-05,2]
[336375707,1724796549514,-250.0,9.281e-05,2]
[336375708,1724796549537,-250.0,9.306e-05,2]
[336375709,1724796549561,-250.0,9.332e-05,2]
[336375710,1724796549584,-250.0,9.357e-05,2]
[336375711,1724796549606,-250.0,9.382e-05,2]
[336375712,1724796549631,-250.0,9.408e-05,2]
[336375713,1724796549660,-250.0,9.433e-05,2]
[336375714,1724796549686,-250.0,9.459e-05,2]
[336375715,1724796549710,-250.0,9.484e-05,2]
[336375716,1724796549734,-250.0,9.509e-05,2]
[336375717,1724796549757,-250.0,9.535e-05,2]
[336375718,1724796549781,-250.0,9.56e-05,2]
[336375719,1724796549804,-250.0,9.586e-05,2]
[336375720,1724796549827,-250.0,9.611e-05,2]
[336375721,1724796549850,-250.0,9.636e-05,2]
[336375722,1724796549873,-250.0,9.662e-05,2]
[336375723,1724796549896,-420.0,9.672e-05,2]
[336375724,1724796549919,-403.0,9.672e-05,2]
[336375725,1724796549941,-250.0,9.687e-05,2]
[336375726,1724796549964,-250.0,9.713e-05,2]
[336375727,1724796549990,-250.0,9.738e-05,2]
[336375728,1724796550012,-156.73623269,9.857e-05,2]
[336375729,1724796550034,-513.69602662,9.857e-05,2]
[336375730,1724796551586,3333.5976225,8.794e-05,2]
[336375731,1724796558038,369.451088,0.00028493,120]
[336375735,1724796564129,-209.81980082,0.00010081,2]
[336375736,1724796564151,-307.65893703,0.0001026,2]
[336375737,1724796568553,158.75068995,8.794e-05,2]
[336375740,1724796582306,181.63512229,8.794e-05,2]
[336375817,1724796632659,-285.13789483,0.00010544,2]
[336375819,1724796632669,-1064.86209417,0.00010544,2]
[336375821,1724796632682,-1102.44512038,0.00010544,2]
[336375823,1724796632693,-1309.99928252,0.00010659,2]
[336375825,1724796632702,-209.81980082,0.00010659,2]
[336375827,1724796632718,-158.75068995,0.00010659,2]
[336375829,1724796632728,-300.0,0.00010857,2]
[336375832,1724796632738,-5593.09224047,0.00010858,2]
[336375834,1724796632748,-500.0,0.00010958,2]
[336375836,1724796632758,-500.0,0.00010958,2]
[336375838,1724796632769,-500.0,0.00010958,2]
[336375840,1724796632779,-164.23416757,0.00010958,2]
[336375842,1724796632789,-500.0,0.00010958,2]
[336375844,1724796632799,-500.0,0.00010958,2]
[336375846,1724796632809,-500.0,0.00010958,2]
[336375848,1724796632818,-500.0,0.00010958,2]
[336375850,1724796632828,-500.0,0.00010958,2]
[336375852,1724796632838,-500.89543115,0.00010958,2]
[336375854,1724796632847,-500.0,0.00010958,2]